[Event "Titled Tuesday Blitz December 20 Late 2022"]
[White "Novikova, Galina"]
[Black "Gritsenko, Nikolai"]
[WhiteFideId "4157095"]
[BlackFideId "14112493"]
[WhiteElo "1953"]
[BlackElo "2389"]
[Result "1/2-1/2"]
[Round "02"]
[TimeControl "180+1"]
[Date "2022.12.21"]
[WhiteClock "0:00:13"]
[BlackClock "0:00:07"]

1. e4 {[%clk 0:03:00]}  d5 {[%clk 0:02:59]} 2. exd5 {[%clk 0:03:00]}  Nf6 {[%clk 0:03:00]} 3. Nf3 {[%clk 0:03:00]}  Nxd5 {[%clk 0:03:00]} 4. d4 {[%clk 0:03:00]}  Bf5 {[%clk 0:02:59]} 5. Bd3 {[%clk 0:02:58]}  Bxd3 {[%clk 0:02:59]} 6. Qxd3 {[%clk 0:02:59]}  c6 {[%clk 0:02:59]} 7. O-O {[%clk 0:02:58]}  e6 {[%clk 0:02:59]} 8. c4 {[%clk 0:02:56]}  Nf6 {[%clk 0:02:59]} 9. Nc3 {[%clk 0:02:55]}  Be7 {[%clk 0:02:59]} 10. Bg5 {[%clk 0:02:55]}  O-O {[%clk 0:02:58]} 11. Rad1 {[%clk 0:02:54]}  Nbd7 {[%clk 0:02:58]} 12. Ne5 {[%clk 0:02:48]}  Re8 {[%clk 0:02:52]} 13. Nxd7 {[%clk 0:02:45]}  Qxd7 {[%clk 0:02:49]} 14. d5 {[%clk 0:02:27]}  cxd5 {[%clk 0:02:36]} 15. cxd5 {[%clk 0:02:28]}  Rad8 {[%clk 0:02:33]} 16. Bxf6 {[%clk 0:02:23]}  Bxf6 {[%clk 0:02:23]} 17. d6 {[%clk 0:02:17]}  Rc8 {[%clk 0:01:45]} 18. Rd2 {[%clk 0:01:56]}  Bxc3 {[%clk 0:01:40]} 19. bxc3 {[%clk 0:01:56]}  Rc6 {[%clk 0:01:40]} 20. Rfd1 {[%clk 0:01:55]}  Rec8 {[%clk 0:01:38]} 21. Rc2 {[%clk 0:01:54]}  Rc4 {[%clk 0:01:30]} 22. h3 {[%clk 0:01:45]}  h6 {[%clk 0:01:29]} 23. Qe3 {[%clk 0:01:41]}  b5 {[%clk 0:01:27]} 24. Rd4 {[%clk 0:01:35]}  b4 {[%clk 0:01:03]} 25. Rxc4 {[%clk 0:01:24]}  Rxc4 {[%clk 0:01:02]} 26. Qd3 {[%clk 0:00:51]}  Rxc3 {[%clk 0:01:00]} 27. Rxc3 {[%clk 0:00:51]}  bxc3 {[%clk 0:01:00]} 28. Qxc3 {[%clk 0:00:51]}  Qxd6 {[%clk 0:01:00]} 29. Qc8+ {[%clk 0:00:52]}  Kh7 {[%clk 0:00:59]} 30. Qc2+ {[%clk 0:00:53]}  g6 {[%clk 0:00:58]} 31. Qe2 {[%clk 0:00:51]}  e5 {[%clk 0:00:53]} 32. a4 {[%clk 0:00:50]}  Qd4 {[%clk 0:00:46]} 33. Qb5 {[%clk 0:00:48]}  Kg7 {[%clk 0:00:43]} 34. a5 {[%clk 0:00:39]}  h5 {[%clk 0:00:42]} 35. a6 {[%clk 0:00:38]}  e4 {[%clk 0:00:42]} 36. Qa5 {[%clk 0:00:22]}  e3 {[%clk 0:00:34]} 37. fxe3 {[%clk 0:00:22]}  Qxe3+ {[%clk 0:00:34]} 38. Kh1 {[%clk 0:00:22]}  h4 {[%clk 0:00:26]} 39. Qa1+ {[%clk 0:00:21]}  Kg8 {[%clk 0:00:23]} 40. Qf6 {[%clk 0:00:17]}  Qe1+ {[%clk 0:00:19]} 41. Kh2 {[%clk 0:00:18]}  Qg3+ {[%clk 0:00:18]} 42. Kh1 {[%clk 0:00:19]}  Qe1+ {[%clk 0:00:17]} 43. Kh2 {[%clk 0:00:18]}  Qg3+ {[%clk 0:00:15]} 44. Kh1 {[%clk 0:00:17]}  Qd3 {[%clk 0:00:12]} 45. Qc6 {[%clk 0:00:12]}  Qf1+ {[%clk 0:00:10]} 46. Kh2 {[%clk 0:00:12]}  Qf4+ {[%clk 0:00:10]} 47. Kh1 {[%clk 0:00:13]}  Kh7 {[%clk 0:00:09]} 48. Qb7 {[%clk 0:00:12]}  Qc1+ {[%clk 0:00:07]} 49. Kh2 {[%clk 0:00:12]}  Qf4+ {[%clk 0:00:07]} 50. Kh1 {[%clk 0:00:12]}  Qf1+ {[%clk 0:00:07]} 51. Kh2 {[%clk 0:00:12]}  Qf4+ {[%clk 0:00:07]} 52. Kh1 {[%clk 0:00:13]} 1/2-1/2


[Site "https://www.chess.com"]

[Event "Titled Tuesday Blitz December 20 Late 2022"]
[White "Rorrer, Grayson"]
[Black "Rego, Pedro Filipe"]
[WhiteFideId "30944996"]
[BlackFideId "1904310"]
[WhiteElo "2200"]
[BlackElo "2193"]
[Result "1-0"]
[Round "02"]
[TimeControl "180+1"]
[Date "2022.12.21"]
[WhiteClock "0:00:06"]
[BlackClock "0:00:10"]

1. e4 {[%clk 0:03:00]}  c5 {[%clk 0:03:00]} 2. Nf3 {[%clk 0:03:00]}  d6 {[%clk 0:03:00]} 3. c3 {[%clk 0:03:00]}  Nf6 {[%clk 0:02:59]} 4. Be2 {[%clk 0:03:01]}  Nc6 {[%clk 0:02:54]} 5. d4 {[%clk 0:03:01]}  cxd4 {[%clk 0:02:54]} 6. cxd4 {[%clk 0:03:01]}  d5 {[%clk 0:02:53]} 7. e5 {[%clk 0:03:01]}  Ne4 {[%clk 0:02:53]} 8. O-O {[%clk 0:03:00]}  g6 {[%clk 0:02:46]} 9. Nc3 {[%clk 0:03:00]}  Bg7 {[%clk 0:02:45]} 10. Qb3 {[%clk 0:02:54]}  e6 {[%clk 0:02:38]} 11. Bd3 {[%clk 0:02:47]}  O-O {[%clk 0:02:32]} 12. Rd1 {[%clk 0:02:25]}  Nxc3 {[%clk 0:02:30]} 13. bxc3 {[%clk 0:02:26]}  Na5 {[%clk 0:02:27]} 14. Qc2 {[%clk 0:02:24]}  b6 {[%clk 0:02:27]} 15. g3 {[%clk 0:02:20]}  Bd7 {[%clk 0:02:16]} 16. Bg5 {[%clk 0:02:16]}  f6 {[%clk 0:02:15]} 17. exf6 {[%clk 0:02:16]}  Bxf6 {[%clk 0:02:16]} 18. Bf4 {[%clk 0:02:12]}  Rc8 {[%clk 0:02:10]} 19. h4 {[%clk 0:01:49]}  Kg7 {[%clk 0:01:50]} 20. Qd2 {[%clk 0:01:40]}  Kh8 {[%clk 0:01:46]} 21. Be5 {[%clk 0:01:29]}  Nc4 {[%clk 0:01:45]} 22. Bxc4 {[%clk 0:01:24]}  Rxc4 {[%clk 0:01:43]} 23. Qh6 {[%clk 0:01:17]}  Qe7 {[%clk 0:01:35]} 24. Rac1 {[%clk 0:00:48]}  Qg7 {[%clk 0:01:13]} 25. Qe3 {[%clk 0:00:47]}  Kg8 {[%clk 0:01:05]} 26. Kg2 {[%clk 0:00:46]}  Ba4 {[%clk 0:01:03]} 27. Re1 {[%clk 0:00:43]}  Bd7 {[%clk 0:01:02]} 28. Bf4 {[%clk 0:00:38]}  Rfc8 {[%clk 0:00:55]} 29. Bg5 {[%clk 0:00:33]}  b5 {[%clk 0:00:46]} 30. Qf4 {[%clk 0:00:31]}  Rf8 {[%clk 0:00:40]} 31. Qd6 {[%clk 0:00:29]}  Rc6 {[%clk 0:00:35]} 32. Qf4 {[%clk 0:00:21]}  Bxd4 {[%clk 0:00:28]} 33. Qxd4 {[%clk 0:00:19]}  Qxd4 {[%clk 0:00:22]} 34. Nxd4 {[%clk 0:00:20]}  Rb6 {[%clk 0:00:17]} 35. Be7 {[%clk 0:00:15]}  Rc8 {[%clk 0:00:16]} 36. Bb4 {[%clk 0:00:12]}  Ra6 {[%clk 0:00:14]} 37. a3 {[%clk 0:00:12]}  Kf7 {[%clk 0:00:13]} 38. Nb3 {[%clk 0:00:12]}  Rac6 {[%clk 0:00:13]} 39. Re3 {[%clk 0:00:12]}  Rc4 {[%clk 0:00:13]} 40. Rce1 {[%clk 0:00:10]}  R8c6 {[%clk 0:00:11]} 41. Na5 {[%clk 0:00:09]}  Rc8 {[%clk 0:00:10]} 42. Nxc4 {[%clk 0:00:09]}  Rxc4 {[%clk 0:00:11]} 43. Rf3+ {[%clk 0:00:10]}  Kg7 {[%clk 0:00:09]} 44. Bf8+ {[%clk 0:00:09]}  Kg8 {[%clk 0:00:09]} 45. Bh6 {[%clk 0:00:10]}  Rc8 {[%clk 0:00:09]} 46. Kh2 {[%clk 0:00:05]}  a5 {[%clk 0:00:09]} 47. Bf4 {[%clk 0:00:05]}  b4 {[%clk 0:00:09]} 48. cxb4 {[%clk 0:00:05]}  axb4 {[%clk 0:00:10]} 49. axb4 {[%clk 0:00:06]}  Rb8 {[%clk 0:00:10]} 50. Bxb8 {[%clk 0:00:06]} 1-0


[Site "https://www.chess.com"]

[Event "Titled Tuesday Blitz December 20 Late 2022"]
[White "Sarana, Alexey"]
[Black "Alex_Sahakyan2006"]
[WhiteFideId "24133795"]
[WhiteElo "2708"]
[BlackElo "2624"]
[Result "1-0"]
[Round "02"]
[TimeControl "180+1"]
[Date "2022.12.21"]
[WhiteClock "0:00:04"]
[BlackClock "0:00:11"]

1. d4 {[%clk 0:03:00]}  Nf6 {[%clk 0:03:00]} 2. c4 {[%clk 0:03:01]}  e6 {[%clk 0:03:00]} 3. Nc3 {[%clk 0:03:01]}  Bb4 {[%clk 0:03:00]} 4. e3 {[%clk 0:03:02]}  O-O {[%clk 0:03:00]} 5. Bd3 {[%clk 0:03:02]}  d5 {[%clk 0:02:59]} 6. a3 {[%clk 0:03:02]}  Bxc3+ {[%clk 0:02:58]} 7. bxc3 {[%clk 0:03:03]}  dxc4 {[%clk 0:02:58]} 8. Bxc4 {[%clk 0:03:04]}  c5 {[%clk 0:02:58]} 9. Bd3 {[%clk 0:03:01]}  Qc7 {[%clk 0:02:56]} 10. Bb2 {[%clk 0:03:01]}  b6 {[%clk 0:02:53]} 11. Qe2 {[%clk 0:02:58]}  Bb7 {[%clk 0:02:52]} 12. e4 {[%clk 0:02:59]}  Nc6 {[%clk 0:02:43]} 13. Nf3 {[%clk 0:02:57]}  Rfd8 {[%clk 0:02:41]} 14. O-O {[%clk 0:02:56]}  Qf4 {[%clk 0:02:36]} 15. Rfe1 {[%clk 0:02:53]}  Na5 {[%clk 0:02:35]} 16. Rad1 {[%clk 0:02:52]}  cxd4 {[%clk 0:02:33]} 17. cxd4 {[%clk 0:02:52]}  Rac8 {[%clk 0:02:33]} 18. Ne5 {[%clk 0:02:41]}  Nb3 {[%clk 0:02:19]} 19. g3 {[%clk 0:02:37]}  Qh6 {[%clk 0:02:11]} 20. Bc2 {[%clk 0:02:35]}  Na5 {[%clk 0:02:06]} 21. h4 {[%clk 0:02:28]}  Qh5 {[%clk 0:02:06]} 22. f3 {[%clk 0:02:12]}  Nd7 {[%clk 0:01:49]} 23. Nxd7 {[%clk 0:01:49]}  Rxd7 {[%clk 0:01:50]} 24. d5 {[%clk 0:01:47]}  exd5 {[%clk 0:01:34]} 25. exd5 {[%clk 0:01:46]}  Rdd8 {[%clk 0:01:34]} 26. Rd4 {[%clk 0:01:06]}  Bxd5 {[%clk 0:01:13]} 27. Rg4 {[%clk 0:00:38]}  g6 {[%clk 0:00:53]} 28. Bb1 {[%clk 0:00:38]}  Bc4 {[%clk 0:00:38]} 29. Qe7 {[%clk 0:00:13]}  Qc5+ {[%clk 0:00:34]} 30. Qxc5 {[%clk 0:00:13]}  Rxc5 {[%clk 0:00:34]} 31. Bf6 {[%clk 0:00:12]}  Rdc8 {[%clk 0:00:33]} 32. Rd4 {[%clk 0:00:11]}  Be6 {[%clk 0:00:30]} 33. Red1 {[%clk 0:00:11]}  Rc1 {[%clk 0:00:27]} 34. Rxc1 {[%clk 0:00:07]}  Rxc1+ {[%clk 0:00:28]} 35. Kf2 {[%clk 0:00:07]}  Nc6 {[%clk 0:00:26]} 36. Rd6 {[%clk 0:00:04]}  Rxb1 {[%clk 0:00:16]} 37. Rxc6 {[%clk 0:00:05]}  Rb3 {[%clk 0:00:11]} 38. Rd6 {[%clk 0:00:04]} 1-0


[Site "https://www.chess.com"]

[Event "Titled Tuesday Blitz December 20 Late 2022"]
[White "Sarkar, Justin"]
[Black "Adel, Sara"]
[WhiteFideId "2010011"]
[BlackFideId "10616764"]
[WhiteElo "2239"]
[BlackElo "1997"]
[Result "1-0"]
[Round "02"]
[TimeControl "180+1"]
[Date "2022.12.21"]
[WhiteClock "0:00:35"]
[BlackClock "0:00:14"]

1. e4 {[%clk 0:02:54]}  c6 {[%clk 0:00:59]} 2. d4 {[%clk 0:02:51]}  d5 {[%clk 0:01:00]} 3. e5 {[%clk 0:02:51]}  Bf5 {[%clk 0:00:59]} 4. Nf3 {[%clk 0:02:40]}  e6 {[%clk 0:00:56]} 5. a3 {[%clk 0:02:39]}  Be7 {[%clk 0:00:56]} 6. c4 {[%clk 0:02:30]}  c5 {[%clk 0:00:55]} 7. Nc3 {[%clk 0:02:26]}  dxc4 {[%clk 0:00:49]} 8. Bxc4 {[%clk 0:02:17]}  cxd4 {[%clk 0:00:40]} 9. Nxd4 {[%clk 0:02:16]}  Nc6 {[%clk 0:00:40]} 10. Nxf5 {[%clk 0:02:09]}  Qxd1+ {[%clk 0:00:37]} 11. Nxd1 {[%clk 0:01:55]}  exf5 {[%clk 0:00:34]} 12. f4 {[%clk 0:01:55]}  Bc5 {[%clk 0:00:22]} 13. b4 {[%clk 0:01:27]}  Bb6 {[%clk 0:00:20]} 14. Be3 {[%clk 0:01:19]}  Bxe3 {[%clk 0:00:19]} 15. Nxe3 {[%clk 0:01:19]}  f6 {[%clk 0:00:19]} 16. Nxf5 {[%clk 0:01:11]}  fxe5 {[%clk 0:00:19]} 17. Nxg7+ {[%clk 0:01:10]}  Ke7 {[%clk 0:00:18]} 18. O-O {[%clk 0:01:05]}  Nf6 {[%clk 0:00:17]} 19. fxe5 {[%clk 0:01:01]}  Nxe5 {[%clk 0:00:17]} 20. Rae1 {[%clk 0:01:00]}  Kd6 {[%clk 0:00:16]} 21. Rxf6+ {[%clk 0:00:59]}  Kc7 {[%clk 0:00:13]} 22. Rxe5 {[%clk 0:00:58]}  Rad8 {[%clk 0:00:14]} 23. Ne6+ {[%clk 0:00:55]}  Kd6 {[%clk 0:00:13]} 24. Rd5+ {[%clk 0:00:53]}  Ke7 {[%clk 0:00:13]} 25. Rxd8 {[%clk 0:00:50]}  Rxd8 {[%clk 0:00:13]} 26. Nxd8 {[%clk 0:00:50]}  Kxf6 {[%clk 0:00:13]} 27. Nxb7 {[%clk 0:00:50]}  Ke5 {[%clk 0:00:14]} 28. Na5 {[%clk 0:00:50]}  Kd4 {[%clk 0:00:14]} 29. Kf2 {[%clk 0:00:49]}  Kc3 {[%clk 0:00:14]} 30. g4 {[%clk 0:00:48]}  Kb2 {[%clk 0:00:15]} 31. a4 {[%clk 0:00:47]}  Ka3 {[%clk 0:00:15]} 32. Nc6 {[%clk 0:00:45]}  Kxa4 {[%clk 0:00:16]} 33. b5 {[%clk 0:00:45]}  h6 {[%clk 0:00:14]} 34. h4 {[%clk 0:00:44]}  Ka3 {[%clk 0:00:13]} 35. Nxa7 {[%clk 0:00:43]}  Kb4 {[%clk 0:00:13]} 36. b6 {[%clk 0:00:42]}  Kc5 {[%clk 0:00:13]} 37. b7 {[%clk 0:00:42]}  Kxc4 {[%clk 0:00:14]} 38. b8=Q {[%clk 0:00:41]}  h5 {[%clk 0:00:14]} 39. gxh5 {[%clk 0:00:40]}  Kd4 {[%clk 0:00:15]} 40. Qb5 {[%clk 0:00:38]}  Kc3 {[%clk 0:00:13]} 41. Nc6 {[%clk 0:00:37]}  Kd2 {[%clk 0:00:14]} 42. Qb3 {[%clk 0:00:36]}  Kc1 {[%clk 0:00:13]} 43. Nd4 {[%clk 0:00:35]}  Kd2 {[%clk 0:00:14]} 44. Qc2# {[%clk 0:00:35]} 1-0


[Site "https://www.chess.com"]

[Event "Titled Tuesday Blitz December 20 Late 2022"]
[White "Saveliev, Alexei"]
[Black "Mekhitarian, Krikor Sevag"]
[WhiteFideId "24128546"]
[BlackFideId "2107660"]
[WhiteElo "2290"]
[BlackElo "2604"]
[Result "0-1"]
[Round "02"]
[TimeControl "180+1"]
[Date "2022.12.21"]
[WhiteClock "0:01:25"]
[BlackClock "0:00:13"]

1. c4 {[%clk 0:03:00]}  e6 {[%clk 0:02:58]} 2. Nc3 {[%clk 0:03:01]}  b6 {[%clk 0:02:57]} 3. d4 {[%clk 0:03:01]}  Bb7 {[%clk 0:02:57]} 4. a3 {[%clk 0:03:01]}  f5 {[%clk 0:02:56]} 5. d5 {[%clk 0:03:02]}  Bd6 {[%clk 0:02:47]} 6. g3 {[%clk 0:03:01]}  Nf6 {[%clk 0:02:47]} 7. Bg2 {[%clk 0:03:01]}  O-O {[%clk 0:02:47]} 8. Nh3 {[%clk 0:03:01]}  a5 {[%clk 0:02:43]} 9. O-O {[%clk 0:03:02]}  Na6 {[%clk 0:02:43]} 10. Qc2 {[%clk 0:02:59]}  Nc5 {[%clk 0:02:36]} 11. Rd1 {[%clk 0:02:59]}  e5 {[%clk 0:02:29]} 12. Qxf5 {[%clk 0:02:51]}  Nxd5 {[%clk 0:02:11]} 13. Qh5 {[%clk 0:02:47]}  Nxc3 {[%clk 0:01:33]} 14. bxc3 {[%clk 0:02:40]}  Bxg2 {[%clk 0:01:33]} 15. Kxg2 {[%clk 0:02:41]}  Qf6 {[%clk 0:01:19]} 16. Be3 {[%clk 0:02:34]}  h6 {[%clk 0:01:12]} 17. Rd5 {[%clk 0:02:25]}  Ne4 {[%clk 0:01:03]} 18. Rc1 {[%clk 0:02:24]}  Qe6 {[%clk 0:00:59]} 19. Qh4 {[%clk 0:02:10]}  Nf6 {[%clk 0:00:59]} 20. Rd2 {[%clk 0:02:09]}  Be7 {[%clk 0:00:58]} 21. a4 {[%clk 0:01:58]}  Ng4 {[%clk 0:00:43]} 22. Qh5 {[%clk 0:01:58]}  g6 {[%clk 0:00:43]} 23. Qxh6 {[%clk 0:01:53]}  Nxh6 {[%clk 0:00:41]} 24. Bxh6 {[%clk 0:01:54]}  Rf7 {[%clk 0:00:36]} 25. Be3 {[%clk 0:01:54]}  d6 {[%clk 0:00:34]} 26. Rd5 {[%clk 0:01:54]}  Raf8 {[%clk 0:00:34]} 27. f3 {[%clk 0:01:50]}  Rh7 {[%clk 0:00:31]} 28. Nf2 {[%clk 0:01:50]}  Qf5 {[%clk 0:00:28]} 29. Ng4 {[%clk 0:01:42]}  Qh5 {[%clk 0:00:25]} 30. h4 {[%clk 0:01:40]}  Qf5 {[%clk 0:00:24]} 31. Nh6+ {[%clk 0:01:39]}  Rxh6 {[%clk 0:00:25]} 32. Bxh6 {[%clk 0:01:40]}  Re8 {[%clk 0:00:23]} 33. Be3 {[%clk 0:01:32]}  Qe6 {[%clk 0:00:22]} 34. Rb1 {[%clk 0:01:28]}  Bf6 {[%clk 0:00:22]} 35. Rb3 {[%clk 0:01:25]}  Re7 {[%clk 0:00:21]} 36. Rd1 {[%clk 0:01:25]}  Qxc4 {[%clk 0:00:20]} 37. Rb5 {[%clk 0:01:23]}  Qxa4 {[%clk 0:00:19]} 38. Rbb1 {[%clk 0:01:21]}  Qc4 {[%clk 0:00:19]} 39. Kf2 {[%clk 0:01:22]}  Qxc3 {[%clk 0:00:18]} 40. h5 {[%clk 0:01:22]}  gxh5 {[%clk 0:00:18]} 41. Rh1 {[%clk 0:01:22]}  h4 {[%clk 0:00:19]} 42. Rh3 {[%clk 0:01:22]}  e4 {[%clk 0:00:18]} 43. gxh4 {[%clk 0:01:21]}  exf3 {[%clk 0:00:15]} 44. Rg1+ {[%clk 0:01:22]}  Kf7 {[%clk 0:00:15]} 45. Rxf3 {[%clk 0:01:22]}  Rxe3 {[%clk 0:00:15]} 46. Rxe3 {[%clk 0:01:16]}  Bd4 {[%clk 0:00:15]} 47. Rg3 {[%clk 0:01:17]}  Bxe3+ {[%clk 0:00:14]} 48. Rxe3 {[%clk 0:01:18]}  Qd4 {[%clk 0:00:14]} 49. Kf3 {[%clk 0:01:18]}  Qxh4 {[%clk 0:00:14]} 50. Rc3 {[%clk 0:01:18]}  Qh3+ {[%clk 0:00:14]} 51. Kf4 {[%clk 0:01:18]}  Qxc3 {[%clk 0:00:14]} 52. e4 {[%clk 0:01:19]}  Qd4 {[%clk 0:00:13]} 53. Kf3 {[%clk 0:01:20]}  a4 {[%clk 0:00:13]} 54. Kf4 {[%clk 0:01:21]}  a3 {[%clk 0:00:13]} 55. Kf5 {[%clk 0:01:21]}  Qe5+ {[%clk 0:00:13]} 56. Kg4 {[%clk 0:01:22]}  Qxe4+ {[%clk 0:00:13]} 57. Kh5 {[%clk 0:01:23]}  Qg2 {[%clk 0:00:13]} 58. Kh4 {[%clk 0:01:24]}  Kf6 {[%clk 0:00:13]} 59. Kh5 {[%clk 0:01:25]}  Qg5# {[%clk 0:00:13]} 0-1


[Site "https://www.chess.com"]

[Event "Titled Tuesday Blitz December 20 Late 2022"]
[White "Silva, Miguel Antonio Neto"]
[Black "Bryant, Todd"]
[WhiteFideId "1911929"]
[BlackFideId "2031299"]
[WhiteElo "2223"]
[BlackElo "2357"]
[Result "1-0"]
[Round "02"]
[TimeControl "180+1"]
[Date "2022.12.21"]
[WhiteClock "0:00:14"]
[BlackClock "0:00:01"]

1. d4 {[%clk 0:03:00]}  Nf6 {[%clk 0:02:54]} 2. c4 {[%clk 0:02:59]}  g6 {[%clk 0:02:55]} 3. Nf3 {[%clk 0:02:57]}  Bg7 {[%clk 0:02:55]} 4. g3 {[%clk 0:02:55]}  O-O {[%clk 0:02:55]} 5. Bg2 {[%clk 0:02:54]}  d6 {[%clk 0:02:55]} 6. O-O {[%clk 0:02:54]}  c5 {[%clk 0:02:56]} 7. Nc3 {[%clk 0:02:53]}  Nc6 {[%clk 0:02:57]} 8. d5 {[%clk 0:02:52]}  Na5 {[%clk 0:02:53]} 9. Nd2 {[%clk 0:02:52]}  e6 {[%clk 0:02:53]} 10. e4 {[%clk 0:02:48]}  exd5 {[%clk 0:02:49]} 11. cxd5 {[%clk 0:02:44]}  a6 {[%clk 0:02:42]} 12. a4 {[%clk 0:02:43]}  c4 {[%clk 0:02:37]} 13. Qc2 {[%clk 0:02:34]}  Rb8 {[%clk 0:02:23]} 14. b4 {[%clk 0:02:28]}  cxb3 {[%clk 0:02:15]} 15. Nxb3 {[%clk 0:02:28]}  Nxb3 {[%clk 0:02:02]} 16. Qxb3 {[%clk 0:02:27]}  b5 {[%clk 0:02:03]} 17. axb5 {[%clk 0:02:26]}  axb5 {[%clk 0:02:04]} 18. Bb2 {[%clk 0:02:10]}  Nd7 {[%clk 0:01:56]} 19. Rfc1 {[%clk 0:01:58]}  Nc5 {[%clk 0:01:53]} 20. Qc2 {[%clk 0:01:58]}  b4 {[%clk 0:01:48]} 21. Na4 {[%clk 0:01:54]}  b3 {[%clk 0:01:39]} 22. Qd2 {[%clk 0:01:41]}  Bxb2 {[%clk 0:01:24]} 23. Nxb2 {[%clk 0:01:36]}  Qf6 {[%clk 0:01:17]} 24. Rab1 {[%clk 0:01:31]}  Ba6 {[%clk 0:01:15]} 25. h4 {[%clk 0:01:27]}  Rfc8 {[%clk 0:01:08]} 26. Kh2 {[%clk 0:01:24]}  Qe5 {[%clk 0:01:04]} 27. Qe3 {[%clk 0:01:18]}  h5 {[%clk 0:00:46]} 28. f4 {[%clk 0:01:18]}  Qe8 {[%clk 0:00:44]} 29. e5 {[%clk 0:01:17]}  Nd7 {[%clk 0:00:34]} 30. e6 {[%clk 0:01:11]}  Nc5 {[%clk 0:00:30]} 31. Bh3 {[%clk 0:01:05]}  f5 {[%clk 0:00:25]} 32. Bf1 {[%clk 0:00:55]}  Bxf1 {[%clk 0:00:22]} 33. Rxf1 {[%clk 0:00:55]}  Ne4 {[%clk 0:00:21]} 34. Rfc1 {[%clk 0:00:53]}  Qb5 {[%clk 0:00:20]} 35. Nd3 {[%clk 0:00:47]}  Rxc1 {[%clk 0:00:15]} 36. Nxc1 {[%clk 0:00:47]}  b2 {[%clk 0:00:14]} 37. Nd3 {[%clk 0:00:47]}  Qb3 {[%clk 0:00:13]} 38. Rxb2 {[%clk 0:00:37]}  Qxb2+ {[%clk 0:00:10]} 39. Nxb2 {[%clk 0:00:36]}  Rxb2+ {[%clk 0:00:11]} 40. Kg1 {[%clk 0:00:36]}  Rb1+ {[%clk 0:00:07]} 41. Kg2 {[%clk 0:00:34]}  Rb2+ {[%clk 0:00:07]} 42. Kf1 {[%clk 0:00:33]}  Rb3 {[%clk 0:00:07]} 43. Qa7 {[%clk 0:00:28]}  Rb1+ {[%clk 0:00:04]} 44. Ke2 {[%clk 0:00:25]}  Rb2+ {[%clk 0:00:05]} 45. Kd3 {[%clk 0:00:21]}  Nc5+ {[%clk 0:00:01]} 46. Kc3 {[%clk 0:00:19]}  Rb3+ {[%clk 0:00:02]} 47. Kc4 {[%clk 0:00:18]}  Kh8 {[%clk 0:00:01]} 48. Qf7 {[%clk 0:00:16]}  Rxg3 {[%clk 0:00:01]} 49. e7 {[%clk 0:00:14]} 1-0


[Site "https://www.chess.com"]

[Event "Titled Tuesday Blitz December 20 Late 2022"]
[White "Sivakumar, Shaaketh"]
[Black "Bryakin, Mikhail"]
[WhiteFideId "30940176"]
[BlackFideId "4165314"]
[WhiteElo "2174"]
[BlackElo "2391"]
[Result "1-0"]
[Round "02"]
[TimeControl "180+1"]
[Date "2022.12.21"]
[WhiteClock "0:00:13"]
[BlackClock "0:00:10"]

1. d4 {[%clk 0:03:00]}  Nf6 {[%clk 0:02:52]} 2. c4 {[%clk 0:03:00]}  c5 {[%clk 0:02:52]} 3. d5 {[%clk 0:03:00]}  b5 {[%clk 0:02:53]} 4. cxb5 {[%clk 0:03:01]}  a6 {[%clk 0:02:52]} 5. bxa6 {[%clk 0:03:02]}  d6 {[%clk 0:02:51]} 6. Nc3 {[%clk 0:03:02]}  g6 {[%clk 0:02:51]} 7. Nf3 {[%clk 0:03:03]}  Bxa6 {[%clk 0:02:51]} 8. g3 {[%clk 0:03:03]}  Bg7 {[%clk 0:02:51]} 9. Bg2 {[%clk 0:03:03]}  O-O {[%clk 0:02:51]} 10. O-O {[%clk 0:03:04]}  Nbd7 {[%clk 0:02:47]} 11. Rb1 {[%clk 0:02:55]}  Ng4 {[%clk 0:02:46]} 12. Qc2 {[%clk 0:02:50]}  Rb8 {[%clk 0:02:43]} 13. b3 {[%clk 0:02:27]}  Qa5 {[%clk 0:02:34]} 14. Bd2 {[%clk 0:02:25]}  Qa3 {[%clk 0:02:32]} 15. Bc1 {[%clk 0:02:24]}  Qa5 {[%clk 0:02:32]} 16. Bd2 {[%clk 0:02:25]}  Qb6 {[%clk 0:02:25]} 17. a4 {[%clk 0:02:18]}  Rfc8 {[%clk 0:02:23]} 18. h3 {[%clk 0:02:06]}  Nge5 {[%clk 0:02:16]} 19. Ng5 {[%clk 0:02:06]}  h6 {[%clk 0:02:15]} 20. Nf3 {[%clk 0:02:04]}  Nxf3+ {[%clk 0:02:14]} 21. Bxf3 {[%clk 0:02:05]}  Qa7 {[%clk 0:02:00]} 22. h4 {[%clk 0:01:57]}  h5 {[%clk 0:01:49]} 23. Bg5 {[%clk 0:01:53]}  Ne5 {[%clk 0:01:46]} 24. Bg2 {[%clk 0:01:51]}  Rb7 {[%clk 0:01:46]} 25. Rfd1 {[%clk 0:01:35]}  Rcb8 {[%clk 0:01:41]} 26. Na2 {[%clk 0:01:34]}  Ng4 {[%clk 0:01:34]} 27. e4 {[%clk 0:01:23]}  Bd4 {[%clk 0:01:27]} 28. Rd2 {[%clk 0:00:59]}  c4 {[%clk 0:01:01]} 29. b4 {[%clk 0:00:59]}  c3 {[%clk 0:01:02]} 30. Rxd4 {[%clk 0:00:50]}  Qxd4 {[%clk 0:00:57]} 31. Rd1 {[%clk 0:00:49]}  Qc4 {[%clk 0:00:33]} 32. Bf1 {[%clk 0:00:48]}  Qc7 {[%clk 0:00:16]} 33. Bxa6 {[%clk 0:00:45]}  Ra7 {[%clk 0:00:16]} 34. Bb5 {[%clk 0:00:36]}  Qb6 {[%clk 0:00:17]} 35. Rd3 {[%clk 0:00:29]}  Rc7 {[%clk 0:00:15]} 36. Be3 {[%clk 0:00:24]}  Nxe3 {[%clk 0:00:15]} 37. Rxe3 {[%clk 0:00:25]}  Ra7 {[%clk 0:00:13]} 38. Rxc3 {[%clk 0:00:23]}  Qb7 {[%clk 0:00:13]} 39. Bc6 {[%clk 0:00:20]}  Qb6 {[%clk 0:00:13]} 40. a5 {[%clk 0:00:20]}  Qd4 {[%clk 0:00:14]} 41. Qd3 {[%clk 0:00:17]}  Qf6 {[%clk 0:00:14]} 42. a6 {[%clk 0:00:12]}  e5 {[%clk 0:00:11]} 43. b5 {[%clk 0:00:12]}  Qe7 {[%clk 0:00:11]} 44. Qe3 {[%clk 0:00:11]}  Qc7 {[%clk 0:00:11]} 45. Rb3 {[%clk 0:00:11]}  Rb6 {[%clk 0:00:11]} 46. Nc3 {[%clk 0:00:11]}  Raxa6 {[%clk 0:00:07]} 47. bxa6 {[%clk 0:00:11]}  Rxb3 {[%clk 0:00:07]} 48. a7 {[%clk 0:00:12]}  Ra3 {[%clk 0:00:07]} 49. a8=Q+ {[%clk 0:00:11]}  Rxa8 {[%clk 0:00:08]} 50. Bxa8 {[%clk 0:00:12]}  Qa5 {[%clk 0:00:09]} 51. Bc6 {[%clk 0:00:12]}  Qa1+ {[%clk 0:00:09]} 52. Kg2 {[%clk 0:00:13]}  Qa5 {[%clk 0:00:10]} 53. Qd3 {[%clk 0:00:12]}  Qc7 {[%clk 0:00:10]} 54. Nb5 {[%clk 0:00:12]}  Qb8 {[%clk 0:00:10]} 55. Qa3 {[%clk 0:00:13]}  Qxb5 {[%clk 0:00:10]} 56. Bxb5 {[%clk 0:00:13]} 1-0


[Site "https://www.chess.com"]